bitfinex-derivatives/quotes_SOLF0:USTF0_20251006
["timestamp","ask_amount","ask_price","bid_price","bid_amount"]
[1759773685601,7.66,236.45,236.42,0.02773109]
[1759773685801,7.66,236.43,236.42,0.02773109]
[1759773686512,7.66,236.43,236.28,7.51]
[1759773686513,59.1906,236.41,236.28,7.51]
[1759773686708,7.66,236.4,236.28,7.51]
[1759773687012,7.66,236.38,236.28,7.51]
[1759773687207,3.806,236.35,236.23,9.78]
[1759773687510,7.66,236.35,236.24,7.51]
[1759773687706,104.76,236.38,236.24,7.51]
[1759773687917,0.02844862,236.31,236.25,7.51]
[1759773689712,0.02844862,236.31,236.28,3.807]
[1759773690017,7.66,236.4,236.28,7.51]
[1759773690308,59.89333403,236.54,236.35,7.51]
[1759773690309,104.78,236.47,236.35,7.51]
[1759773691422,104.78,236.47,236.39,0.02821255]
[1759773691811,3.8042,236.46,236.39,0.02821255]
[1759773692714,3.8045,236.44,236.39,0.02821255]
[1759773693919,7.66,236.43,236.39,0.02821255]
[1759773694619,7.92,236.46,236.39,0.02821255]
[1759773695416,7.92,236.44,236.39,0.02821255]
[1759773695612,7.92,236.46,236.39,0.02821255]
[1759773696011,3.8047,236.43,236.39,0.02821255]
[1759773696212,7.92,236.42,236.39,0.02821255]
[1759773696614,3.8047,236.43,236.39,0.02821255]
[1759773696811,7.92,236.42,236.39,0.02821255]
[1759773697022,3.8047,236.43,236.39,0.02821255]
[1759773697316,7.92,236.42,236.39,0.02821255]
[1759773697820,3.8047,236.43,236.39,0.02821255]
[1759773698317,7.92,236.42,236.39,0.02821255]
[1759773698724,3.8047,236.43,236.39,0.02821255]
[1759773698924,7.92,236.42,236.39,0.02821255]
[1759773699126,3.8047,236.43,236.39,0.02821255]
[1759773699424,1.92355262,236.45,236.39,0.02821255]
[1759773700326,9.84355262,236.45,236.39,0.02821255]
[1759773701921,7.92,236.43,236.39,0.02821255]
[1759773702225,3.8045,236.44,236.39,0.02821255]
[1759773702417,7.92,236.43,236.39,0.02821255]
[1759773703416,3.8045,236.44,236.39,0.02821255]
[1759773703821,7.92,236.43,236.39,0.02821255]
[1759773704026,1.92355262,236.44,236.39,0.02821255]
[1759773704327,7.92,236.43,236.39,0.02821255]
[1759773705122,1.92355262,236.44,236.39,0.02821255]
[1759773705323,7.92,236.43,236.39,0.02821255]
[1759773705524,1.92355262,236.44,236.39,0.02821255]
[1759773706526,7.92,236.43,236.39,0.02821255]
[1759773706933,1.92355262,236.44,236.39,0.02821255]
[1759773707328,9.84355262,236.44,236.39,7.54821255]
[1759773707633,7.92,236.43,236.39,0.02821255]
[1759773707833,1.92355262,236.44,236.39,0.02821255]
[1759773708028,7.62,236.43,236.39,0.02821255]
[1759773708229,1.92355262,236.44,236.39,0.02821255]
[1759773708731,7.62,236.43,236.39,0.02821255]
[1759773708926,7.62,236.44,236.39,0.02821255]
[1759773709628,104.72,236.45,236.39,0.02821255]
[1759773709828,7.62,236.44,236.39,0.02821255]
[1759773710431,104.72,236.45,236.39,0.02821255]
[1759773710930,7.62,236.44,236.39,0.02821255]
[1759773711526,104.72,236.45,236.39,0.02821255]
[1759773711831,108.5245,236.45,236.39,0.02821255]
[1759773712232,7.62,236.41,236.39,0.02821255]
[1759773712426,7.62,236.41,236.25,12.79629237]
[1759773712628,7.62,236.35,236.25,9.29355262]
[1759773712829,1.92355262,236.33,236.23,3.50273975]
[1759773713028,7.62,236.32,236.22,313.52629237]
[1759773713232,7.62,236.32,236.22,310.02355262]
[1759773714125,7.62,236.32,236.22,311.908]
[1759773714534,0.02773924,236.29,236.22,311.908]
[1759773715433,0.02773924,236.29,236.23,3.8077]
[1759773715640,0.02773924,236.29,236.23,7.37]
[1759773715836,0.02773924,236.29,236.25,7.37]
[1759773716540,9.54355262,236.28,236.18,3.50273975]
[1759773716735,9.54355262,236.28,236.17,1.92355262]
[1759773717032,9.54355262,236.28,236.19,3.8085]
[1759773717530,0.02773924,236.29,236.23,1.92355262]
[1759773718125,0.02773924,236.29,236.23,9.29355262]
[1759773718736,0.02773924,236.29,236.23,13.10145262]
[1759773720045,0.02773924,236.29,236.26,7.37]
[1759773720537,0.02773924,236.29,236.28,7.37]
[1759773720741,7.62,236.37,236.28,7.37]
[1759773721140,1.92355262,236.34,236.24,7.37]
[1759773721347,7.62,236.33,236.24,7.37]
[1759773721540,7.62,236.33,236.26,1.92355262]
[1759773721746,9.54355262,236.37,236.27,7.37]
[1759773722539,7.62,236.37,236.29,3.8069]
[1759773722848,7.62,236.37,236.3,0.02708705]
[1759773723034,1.92355262,236.35,236.3,0.02708705]
[1759773723236,7.62,236.34,236.3,0.02708705]
[1759773723642,7.62,236.31,236.3,0.02708705]
[1759773723841,7.62,236.31,236.21,3.50273975]
[1759773723842,7.62,236.31,236.18,1.92355262]
[1759773724141,7.62,236.28,236.18,1.92355262]
[1759773725549,7.62,236.28,236.21,11.1782]
[1759773725735,3.8062,236.34,236.21,9.29355262]
[1759773725939,7.62,236.33,236.28,3.807]
[1759773726147,7.62,236.38,236.27,9.29355262]
[1759773726540,7.62,236.38,236.27,13.10075262]
[1759773727045,0.02729985,236.35,236.27,13.10075262]
[1759773727245,7.62,236.34,236.27,13.10075262]
[1759773727844,7.62,236.34,236.27,9.29355262]
[1759773728039,7.62,236.34,236.24,1.92355262]
[1759773728343,7.62,236.32,236.22,7.37]
[1759773729142,7.62,236.32,236.22,10.89791973]
[1759773730138,0.02674115,236.29,236.22,10.89791973]
[1759773730544,0.02674115,236.29,236.25,3.8075]
[1759773730741,0.02674115,236.29,236.25,11.1775]
[1759773732045,0.02674115,236.29,236.26,7.37]
[1759773732447,0.02674115,236.29,236.28,7.37]
[1759773734353,0.02674115,236.29,236.28,7.79]
[1759773735549,0.02674115,236.29,236.28,7.37]
[1759773736351,0.02674115,236.29,236.26,7.37]
[1759773737048,0.02674115,236.29,236.25,3.8075]
[1759773737254,0.02674115,236.29,236.26,7.37]
[1759773737649,0.02674115,236.29,236.22,7.33591973]
[1759773737846,0.02674115,236.29,236.22,3.808]
[1759773738249,0.02674115,236.29,236.2,3.52791973]
[1759773738551,7.79,236.28,236.17,7.7]
[1759773739549,3.8076,236.26,236.17,7.7]
[1759773739949,7.79,236.25,236.17,7.7]
[1759773740348,7.79,236.25,236.15,3.8092]
[1759773740744,7.79,236.25,236.17,3.8088]
[1759773740944,7.79,236.32,236.17,7.7]
[1759773741147,7.79,236.32,236.18,7.7]
[1759773741353,7.79,236.32,236.18,11.22791973]
[1759773741752,3.8068,236.31,236.19,3.8084]
[1759773741953,7.79,236.32,236.19,3.8084]
[1759773742348,7.79,236.32,236.21,3.8082]
[1759773743354,3.8068,236.31,236.21,3.8082]
[1759773744358,3.8069,236.29,236.19,7.7]
[1759773744655,59.2156,236.31,236.15,11.22791973]
[1759773744855,7.79,236.3,236.15,7.7]
[1759773745558,11.5976,236.26,236.17,3.8089]
[1759773746557,11.5976,236.26,236.15,7.7]
[1759773747556,11.5976,236.26,236.16,3.809]
[1759773748557,3.8077,236.25,236.16,3.809]
[1759773750355,7.79,236.26,236.16,3.809]
[1759773751555,11.5974,236.26,236.16,3.809]
[1759773751859,7.79,236.26,236.15,7.7]
[1759773752655,3.8079,236.23,236.15,7.7]
[1759773752959,7.79,236.23,236.15,7.7]
[1759773753149,7.81743861,236.23,236.15,7.7]
[1759773754351,7.81743861,236.23,236.13,3.52791973]
[1759773754660,7.81743861,236.23,236.11,11.22791973]
[1759773754862,7.81743861,236.23,236.11,7.7]
[1759773755553,3.8085,236.2,236.11,7.7]
[1759773755954,11.5885,236.2,236.11,7.7]
[1759773757752,0.02725666,236.18,236.11,7.7]
[1759773759768,0.02725666,236.18,236.11,11.22791973]
[1759773759970,0.02725666,236.18,236.12,7.79]
[1759773760464,0.02725666,236.18,236.15,7.79]
[1759773760662,0.02725666,236.18,236.14,3.8093]
[1759773760663,0.02725666,236.18,236.13,11.31791973]
[1759773760868,0.02725666,236.18,236.13,3.52791973]
[1759773761269,0.02725666,236.18,236.17,7.79]
[1759773761666,0.02725666,236.18,236.14,7.79]
[1759773761973,0.02725666,236.18,236.13,7.79]
[1759773762163,0.02725666,236.18,236.12,11.31791973]
[1759773762468,0.02725666,236.18,236.12,7.79]
[1759773764560,0.02725666,236.18,236.12,11.5995]
[1759773764759,0.02725666,236.18,236.12,7.79]
[1759773764964,7.80725666,236.18,236.09,3.52791973]
[1759773766271,7.80725666,236.18,236.08,11.31791973]
[1759773766666,7.80725666,236.18,236.11,7.79]
[1759773766871,0.02725666,236.18,236.11,7.79]
[1759773767463,0.02725666,236.18,236.14,3.8093]
[1759773767665,0.02725666,236.18,236.15,7.79]
[1759773767871,0.02725666,236.18,236.11,7.79]
[1759773768265,0.02725666,236.18,236.12,7.55]
[1759773768463,0.02725666,236.18,236.12,11.07791973]
[1759773768667,0.02725666,236.18,236.12,3.52791973]
[1759773768972,0.02725666,236.18,236.16,3.8089]
[1759773769170,0.02725666,236.18,236.17,7.55]
[1759773770669,7.44,236.33,236.18,66.7958]
[1759773770876,7.44,236.33,236.21,3.52791973]
[1759773771068,7.44,236.33,236.23,7.55]
[1759773771469,7.44,236.33,236.18,104.76]
[1759773771470,7.44,236.33,236.2,3.52791973]
[1759773771773,7.44,236.32,236.18,7.55]
[1759773772072,7.44,236.29,236.18,7.55]
[1759773772269,42.6,236.36,236.24,7.57855709]
[1759773773068,3.8065,236.32,236.24,7.57855709]
[1759773773976,3.8061,236.34,236.24,7.57855709]
[1759773774875,3.8061,236.34,236.24,11.38615709]
[1759773775277,3.8064,236.33,236.24,11.38615709]
[1759773775576,42.6,236.36,236.24,7.57855709]
[1759773775873,11.2466,236.32,236.24,7.57855709]
[1759773776270,3.8069,236.3,236.24,7.57855709]
[1759773776576,7.44,236.32,236.24,0.02855709]
[1759773777674,7.44,236.28,236.24,0.02855709]
[1759773778372,66.653,236.32,236.24,0.02855709]
[1759773778572,7.44,236.29,236.24,0.02855709]
[1759773778768,3.00850615,236.3,236.24,0.02855709]
[1759773778976,7.44,236.26,236.24,0.02855709]
[1759773780474,3.8073,236.27,236.24,0.02855709]
[1759773780475,11.2476,236.25,236.24,0.02855709]
[1759773790188,11.6676,236.25,236.24,0.00041217]
[1759773791785,3.8091,236.16,236.12,7.55]
[1759773792085,104.74,236.19,236.11,7.55]
[1759773792279,3.8087,236.18,236.11,7.55]
[1759773792686,104.74,236.19,236.11,7.55]
[1759773793189,3.809,236.17,236.11,7.55]
[1759773793982,104.74,236.19,236.11,7.55]
[1759773794181,59.2223,236.28,236.11,7.55]
[1759773794384,98.0,236.27,236.12,11.07791973]
[1759773794585,98.0,236.27,236.13,7.55]
[1759773794784,0.02666745,236.22,236.14,3.00850615]
[1759773794991,0.02666745,236.22,236.15,7.55]
[1759773795490,0.02666745,236.22,236.15,11.07791973]
[1759773795685,0.02666745,236.22,236.12,4.68357454]
[1759773795686,0.02666745,236.22,236.12,3.52791973]
[1759773795895,3.8085,236.19,236.12,3.52791973]
[1759773796094,104.74,236.21,236.12,3.52791973]
[1759773796594,104.76666745,236.22,236.13,11.07791973]
[1759773797497,108.57476745,236.22,236.13,11.07791973]
[1759773797699,108.57476745,236.22,236.15,7.55]
[1759773797892,104.76666745,236.22,236.15,7.55]
[1759773798993,7.56,236.21,236.12,3.52791973]
[1759773799192,0.02666745,236.22,236.13,7.92]
[1759773799396,31.8682,236.21,236.14,3.52791973]
[1759773799797,28.06,236.21,236.13,11.44791973]
[1759773799998,28.06,236.21,236.13,7.92]
[1759773800302,3.8085,236.19,236.13,7.92]
[1759773801802,28.06,236.21,236.1,3.52791973]
[1759773801803,11.3689,236.17,236.1,3.52791973]
[1759773802302,3.8085,236.2,236.1,3.52791973]
[1759773802601,3.8085,236.2,236.11,3.52791973]
[1759773802795,3.8085,236.2,236.12,7.92]
[1759773804601,7.56,236.2,236.1,3.52791973]
[1759773804802,9.48745162,236.2,236.09,5.45537135]
[1759773805001,13.29595162,236.2,236.09,9.26537135]
[1759773805203,9.48745162,236.2,236.11,7.92]
[1759773805504,0.02782206,236.17,236.11,7.92]
[1759773805905,0.02782206,236.17,236.11,11.7298]
[1759773807307,0.02782206,236.17,236.11,15.25771973]
[1759773807806,0.02782206,236.17,236.11,11.7298]
[1759773808202,0.02782206,236.17,236.11,15.25771973]
[1759773812407,0.02782206,236.17,236.13,7.92]
[1759773812704,41.46,236.23,236.13,11.44791973]
[1759773812909,1.92745162,236.33,236.2,7.92]
[1759773813109,7.56,236.32,236.2,11.44791973]
[1759773813708,7.56,236.32,236.21,3.52791973]
[1759773814214,85.88823515,236.38,236.26,7.92]
[1759773815107,83.96078353,236.38,236.28,3.807]
[1759773815308,83.96078353,236.38,236.29,7.92]
[1759773815915,83.96078353,236.38,236.31,0.02784746]
[1759773816513,7.5,236.36,236.31,0.02784746]
[1759773816712,1.92745162,236.37,236.31,0.02784746]
[1759773816912,7.5,236.36,236.31,0.02784746]
[1759773817112,1.92745162,236.37,236.31,0.02784746]
[1759773817506,3.8063,236.34,236.31,0.02784746]
[1759773817711,11.3063,236.34,236.31,0.02784746]
[1759773818215,5.73325162,236.37,236.31,0.02784746]
[1759773818417,3.8058,236.37,236.31,0.02784746]
[1759773818920,83.90078353,236.38,236.31,0.02784746]
[1759773819114,68.24,236.38,236.31,7.75784746]
[1759773819418,68.24,236.38,236.32,1.92745162]
[1759773820724,9.42745162,236.43,236.32,1.92745162]
[1759773821313,1.92745162,236.39,236.31,0.02784746]
[1759773821517,7.5,236.38,236.31,0.02784746]
[1759773821712,7.5,236.35,236.31,0.02784746]
[1759773822114,59.1899,236.41,236.31,0.02784746]
[1759773822115,1.92745162,236.37,236.31,0.02784746]
[1759773824327,9.42745162,236.4,236.31,0.02784746]
[1759773825824,7.5,236.4,236.31,0.02784746]
[1759773826025,7.5,236.4,236.32,7.73]
[1759773826520,7.5,236.4,236.32,11.5364]
[1759773826727,3.8051,236.41,236.32,11.5364]
[1759773827320,1.92745162,236.43,236.32,11.5364]
[1759773827522,1.92745162,236.43,236.33,1.92745162]
[1759773828726,11.3045,236.44,236.35,7.82]
[1759773829126,7.5,236.44,236.36,3.8058]
[1759773829327,7.5,236.44,236.35,7.82]
[1759773829830,7.5,236.44,236.38,0.0271719]
[1759773830717,3.8047,236.43,236.38,0.0271719]
[1759773830922,7.7,236.42,236.38,0.0271719]
[1759773831124,3.8047,236.43,236.38,0.0271719]
[1759773831523,3.805,236.42,236.38,0.0271719]
[1759773831829,7.7,236.41,236.38,0.0271719]
[1759773832024,3.805,236.42,236.38,0.0271719]
[1759773832529,7.7,236.41,236.38,0.0271719]
[1759773834331,11.5051,236.41,236.38,0.0271719]
[1759773834529,1.92745162,236.42,236.38,0.0271719]
[1759773835228,7.7,236.41,236.38,0.0271719]
[1759773835428,11.5053,236.39,236.38,0.0271719]
[1759773837936,116.1453,236.39,236.38,0.0271719]
[1759773840740,3.806,236.35,236.29,7.82]
[1759773841040,3.806,236.35,236.26,5.73485162]
[1759773841041,3.806,236.35,236.26,13.55485162]
[1759773841344,7.7,236.36,236.27,7.82]
[1759773842145,0.02789741,236.34,236.27,7.82]
[1759773842345,0.02789741,236.34,236.27,11.6271]
[1759773843939,0.02789741,236.34,236.27,7.82]
[1759773843940,3.83419741,236.34,236.27,7.82]
[1759773845143,3.8065,236.32,236.27,7.82]
[1759773845343,11.5065,236.32,236.27,7.82]
[1759773846043,7.7,236.31,236.27,7.82]
[1759773847539,0.02789741,236.34,236.23,1.92745162]
[1759773847746,0.02789741,236.34,236.27,7.82]
[1759773847938,1.92745162,236.32,236.23,3.52791973]
[1759773848237,1.92745162,236.32,236.11,22.06714909]
[1759773848238,7.7,236.22,236.14,3.52791973]
[1759773848442,32.00745162,236.22,236.13,3.52791973]
[1759773848640,32.00745162,236.22,236.1,7.82]
[1759773849539,0.02698318,236.18,236.1,7.82]
[1759773850539,0.02698318,236.18,236.12,7.82]
[1759773850936,0.02698318,236.18,236.14,1.92745162]
[1759773851446,0.02698318,236.18,236.15,7.82]
[1759773851743,0.02698318,236.18,236.14,1.92745162]
[1759773852344,0.02698318,236.18,236.15,7.82]
[1759773852540,0.02698318,236.18,236.14,1.92745162]
[1759773852747,0.02698318,236.18,236.15,7.82]
[1759773853343,0.02698318,236.18,236.14,1.92745162]
[1759773853539,0.02698318,236.18,236.15,7.82]
[1759773853740,0.02698318,236.18,236.14,1.92745162]
[1759773853945,0.02698318,236.18,236.15,7.82]
[1759773854643,0.02698318,236.18,236.11,9.74745162]
[1759773854845,7.72698318,236.18,236.11,7.82]
[1759773855049,0.02698318,236.18,236.11,7.82]
[1759773855947,0.02698318,236.18,236.11,9.74745162]
[1759773856242,7.7,236.17,236.06,11.34791973]
[1759773856447,5.73675162,236.15,236.06,7.82]
[1759773856847,3.8093,236.15,236.06,9.74745162]
[1759773858352,3.8096,236.13,236.06,7.82]
[1759773858751,7.41,236.14,236.02,1.92745162]
[1759773859353,3.8099,236.11,236.01,9.36745162]
[1759773861843,1.92745162,236.14,236.01,9.36745162]
[1759773862045,3.8106,236.07,236.0,500.0]
[1759773863349,0.02747821,236.06,236.0,500.0]
[1759773865354,11.2208,236.05,236.0,507.44]
[1759773868257,11.2208,236.05,236.01,7.44]
[1759773869460,3.8108,236.05,236.01,7.44]
[1759773870358,11.2208,236.05,236.0,507.44]
[1759773871061,3.8111,236.03,236.0,507.44]
[1759773871655,3.8111,236.03,236.0,500.0]
[1759773871862,3.8114,236.02,236.0,500.0]
[1759773873158,11.2214,236.02,236.0,500.0]
[1759773873962,7.41,236.01,236.0,500.0]
[1759773876662,112.13,236.01,236.0,500.0]
[1759773877564,104.74,236.01,236.0,500.0]
[1759773878065,3.8114,236.02,236.01,7.73]
[1759773878260,108.5514,236.02,236.0,500.0]
[1759773878458,0.02747821,236.06,236.0,500.0]
[1759773879366,0.02747821,236.06,236.01,7.73]
[1759773879757,0.02747821,236.06,236.0,500.0]
[1759773879965,0.02747821,236.06,236.01,112.47]
[1759773880268,7.22,236.17,236.03,7.73]
[1759773880461,7.22,236.17,236.05,7.73]
[1759773880663,3.8097,236.13,236.06,104.92]
[1759773881265,3.8097,236.13,236.07,7.73]
[1759773881859,3.8098,236.12,236.06,112.65]
[1759773882070,59.2574,236.14,236.06,7.73]
[1759773882266,66.4774,236.14,236.06,7.73]
[1759773882466,3.8102,236.09,236.06,7.73]
[1759773883069,164.145,236.11,236.01,7.73]
[1759773883273,171.365,236.11,236.05,0.0272016]
[1759773884568,3.8106,236.07,236.05,0.0272016]
[1759773885067,11.0306,236.07,236.05,0.0272016]
[1759773885267,3.8106,236.07,236.05,0.0272016]
[1759773885973,7.22,236.06,236.05,0.0272016]
[1759773886665,7.64,236.06,236.05,0.0272016]
[1759773888668,3.8106,236.07,236.05,0.0272016]
[1759773888969,104.82,236.06,236.05,0.0272016]
[1759773890269,112.3,236.06,236.05,0.0272016]
[1759773891174,104.82,236.06,236.05,0.0272016]
[1759773891469,3.8098,236.12,236.05,7.2972016]
[1759773891665,104.8,236.17,236.05,7.2972016]
[1759773892473,3.8093,236.15,236.07,3.8105]
[1759773892673,3.8093,236.15,236.05,10.82512133]
[1759773892674,104.8,236.17,236.08,7.27]
[1759773893668,7.48,236.16,236.08,7.27]
[1759773894278,0.73727252,236.19,236.1,0.0279521]
[1759773894472,104.94,236.18,236.11,7.27]
[1759773894982,7.48,236.28,236.12,7.27]
[1759773895178,10.62837081,236.31,236.13,10.79791973]
[1759773895179,59.2275,236.26,236.13,10.79791973]
[1759773895378,8.21703049,236.25,236.13,7.27]
[1759773895580,7.48,236.23,236.13,7.27]
[1759773895781,105.08,236.22,236.13,7.27]
[1759773896383,3.8086,236.19,236.13,7.27]
[1759773898480,105.02,236.2,236.14,7.29720613]
[1759773898681,105.0,236.21,236.14,7.29720613]
[1759773900584,3.8084,236.2,236.14,7.29720613]
[1759773900780,105.0,236.21,236.14,0.02720613]
[1759773900986,7.48,236.2,236.14,0.02720613]
[1759773901381,105.0,236.21,236.14,0.02720613]
[1759773901578,104.98,236.22,236.15,7.27]
[1759773902584,108.7881,236.22,236.15,7.27]
[1759773902786,3.8081,236.22,236.15,7.27]
[1759773902982,104.94,236.23,236.15,7.27]
[1759773903186,59.2058,236.35,236.16,10.28487081]
[1759773903187,7.48,236.28,236.16,10.28487081]
[1759773903386,7.48,236.28,236.17,7.27]
[1759773904284,7.48,236.28,236.2,0.02710606]
[1759773906487,11.2876,236.25,236.2,7.29710606]
[1759773906685,7.48,236.25,236.2,7.29710606]
[1759773907485,0.73685882,236.32,236.21,7.27]
[1759773907684,7.48,236.34,236.21,7.27]
[1759773907894,3.8064,236.33,236.24,10.28487081]
[1759773908083,7.48,236.34,236.24,10.28487081]
[1759773909787,3.8061,236.34,236.27,7.27]
[1759773909988,98.58,236.38,236.27,7.27]
[1759773910288,7.48,236.39,236.29,7.27]
[1759773910989,7.48,236.39,236.32,0.02753086]
[1759773913592,3.8057,236.37,236.32,0.02753086]
[1759773913789,11.2857,236.37,236.32,0.02753086]
[1759773913992,7.48,236.36,236.32,0.02753086]
[1759773914185,7.48,236.41,236.32,0.02753086]
[1759773914486,7.48,236.41,236.33,7.27]
[1759773914987,7.48,236.41,236.33,11.0762]
[1759773915196,116.4045,236.45,236.33,11.0762]
[1759773916093,11.2845,236.45,236.33,11.0762]
[1759773916594,11.2845,236.45,236.35,3.8059]
[1759773916794,11.2845,236.45,236.36,7.27]
[1759773917686,11.2845,236.45,236.38,0.02769422]
[1759773917886,3.8047,236.43,236.38,0.02769422]
[1759773918090,7.93,236.42,236.38,0.02769422]
[1759773919391,8.66642222,236.43,236.38,0.02769422]
[1759773919598,62.20217081,236.42,236.38,0.02769422]
[1759773919799,167.22217081,236.42,236.38,0.02769422]
[1759773920390,7.93,236.41,236.38,0.02769422]
[1759773920597,11.7353,236.39,236.38,0.02769422]
[1759773922995,8.35,236.39,236.24,7.57]
[1759773923200,10.94487081,236.34,236.24,7.57]
[1759773923399,36.69,236.34,236.19,7.57]
[1759773923596,36.69,236.34,236.26,11.3774]
[1759773924200,3.806,236.35,236.26,7.57]
[1759773924391,7.93,236.38,236.26,7.57]
[1759773924593,3.8055,236.38,236.27,7.57]
[1759773925003,7.93,236.38,236.27,7.57]
[1759773925200,9.85468632,236.38,236.27,7.57]
[1759773926000,3.8062,236.34,236.27,7.57]
[1759773926400,0.02686026,236.35,236.27,7.57]
[1759773926693,0.02686026,236.35,236.29,1.92468632]
[1759773927101,0.02686026,236.35,236.29,9.49468632]
[1759773928098,0.02686026,236.35,236.32,1.92468632]
[1759773928399,0.02686026,236.35,236.32,5.73108632]
[1759773928700,0.02686026,236.35,236.33,7.57]
[1759773929696,0.02686026,236.35,236.3,1.92468632]
[1759773929903,0.02686026,236.35,236.31,3.8066]
[1759773930104,0.02686026,236.35,236.32,7.57]
[1759773930303,0.02686026,236.35,236.31,3.8066]
[1759773930503,0.02686026,236.35,236.32,7.57]
[1759773930900,0.02686026,236.35,236.31,3.8066]
[1759773931601,0.02686026,236.35,236.32,7.57]
[1759773932098,0.02686026,236.35,236.31,3.8066]
[1759773932303,0.02686026,236.35,236.32,7.57]
[1759773933500,0.02686026,236.35,236.31,1.92468632]
[1759773933799,0.02686026,236.35,236.31,5.73128632]
[1759773934206,0.02686026,236.35,236.32,7.57]
[1759773935303,0.02686026,236.35,236.31,5.73128632]
[1759773935703,0.02686026,236.35,236.32,7.57]
[1759773935902,0.02686026,236.35,236.32,7.4]
[1759773936104,0.02686026,236.35,236.3,1.92468632]
[1759773937106,0.02686026,236.35,236.31,7.4]
[1759773937504,0.02686026,236.35,236.31,3.8066]
[1759773938107,0.02686026,236.35,236.29,7.4]
[1759773938301,0.02686026,236.35,236.28,105.06]
[1759773938302,0.02686026,236.35,236.31,7.4]
[1759773939207,0.02686026,236.35,236.31,14.73451973]
[1759773939407,0.02686026,236.35,236.31,7.33451973]
[1759773939702,0.02686026,236.35,236.31,3.52791973]
[1759773940306,0.02686026,236.35,236.32,7.4]
[1759773940505,0.02686026,236.35,236.31,3.52791973]
[1759773940710,0.02686026,236.35,236.33,7.4]
[1759773940908,0.02686026,236.35,236.32,3.8063]
[1759773941204,0.02686026,236.35,236.34,11.2061]
[1759773941412,9.47468632,236.48,236.35,7.4]
[1759773941715,9.47468632,236.48,236.37,7.4]
[1759773942911,3.8046,236.44,236.37,7.4]
[1759773943911,7.55,236.44,236.34,7.33905573]
[1759773944215,7.55,236.44,236.35,3.53295573]
[1759773944612,3.8043,236.46,236.36,10.93295573]
[1759773944816,3.8043,236.46,236.37,3.53295573]
[1759773945417,13.27858632,236.48,236.36,3.53295573]
[1759773945616,11.3539,236.48,236.39,7.4]
[1759773945917,7.55,236.48,236.39,7.4]
[1759773946617,3.8041,236.47,236.4,3.805]
[1759773947518,3.8041,236.47,236.39,7.4]
[1759773947818,3.8043,236.46,236.39,10.93295573]
[1759773948013,3.8043,236.46,236.39,7.4]
[1759773948213,3.8043,236.46,236.39,10.93295573]
[1759773949120,3.8043,236.46,236.4,3.53295573]
[1759773949312,3.8043,236.46,236.39,10.93295573]
[1759773949818,9.47468632,236.48,236.4,3.8051]
[1759773950308,9.47468632,236.48,236.39,10.93295573]
[1759773950813,0.73625862,236.51,236.39,10.93295573]
[1759773950814,8.30625862,236.51,236.43,7.78]
[1759773951213,7.57,236.51,236.43,7.78]
[1759773951414,3.8037,236.49,236.43,7.78]
[1759773951710,3.8037,236.49,236.43,11.31295573]
[1759773952821,1.92468632,236.49,236.42,3.55975024]
[1759773953117,7.57,236.48,236.42,3.55975024]
[1759773953815,1.92468632,236.52,236.43,3.53295573]
[1759773954022,1.92468632,236.52,236.44,7.78]
[1759773954416,5.72798632,236.52,236.44,7.78]
[1759773954921,5.72798632,236.52,236.44,11.31295573]
[1759773955621,3.8035,236.51,236.44,11.31295573]
[1759773957724,7.57,236.52,236.44,11.31295573]
[1759773957924,3.803,236.54,236.47,3.53295573]
[1759773958320,11.3732,236.53,236.46,3.53295573]
[1759773958520,11.3732,236.53,236.45,11.31295573]